bitfinex/quotes_SOLUSD_20250228
["timestamp","ask_amount","ask_price","bid_price","bid_amount"]
[1740752492555,3.4851,143.47,143.36,20.11372495]
[1740752493239,4.8791,143.47,143.36,20.11372495]
[1740752493446,1.394,143.47,143.37,0.14216157]
[1740752493637,1.394,143.47,143.39,18.64964886]
[1740752493847,4.879,143.47,143.4,312.0]
[1740752494038,1.46347468,143.46,143.4,312.0]
[1740752494237,0.14216157,143.45,143.35,117.48]
[1740752494443,1.46347468,143.44,143.35,117.48]
[1740752494653,1.60563625,143.46,143.36,18.64964886]
[1740752494849,1.46347468,143.46,143.36,18.64964886]
[1740752495355,4.8797,143.45,143.36,18.64964886]
[1740752495657,1.3942,143.45,143.38,18.64964886]
[1740752496942,1.394,143.47,143.38,18.64964886]
[1740752497150,1.394,143.47,143.41,18.64964886]
[1740752497350,3.4849,143.48,143.41,18.64964886]
[1740752497650,1.46347468,143.47,143.4,11.98]
[1740752497952,0.14216157,143.46,143.4,11.98]
[1740752498150,1.46347468,143.45,143.35,129.46]
[1740752499235,11.8515,143.44,143.35,129.46]
[1740752499531,1.46347468,143.43,143.35,129.46]
[1740752500054,0.14216157,143.42,143.2,0.03]
[1740752500253,2.0,143.27,143.17,3.43453536]
[1740752500442,0.14216157,143.23,143.07,11.315]
[1740752500640,2.14216157,143.21,143.06,40.52254558]
[1740752500834,1.83421999,143.2,143.07,0.74017482]
[1740752501146,1.83421999,143.2,143.07,63.43307615]
[1740752501353,4.8885,143.19,143.08,0.73951851]
[1740752501954,1.83348661,143.18,143.07,63.43307615]
[1740752502534,4.8885,143.19,143.08,0.73944115]
[1740752502738,4.8885,143.19,143.08,64.1725173]
[1740752503038,0.14216157,143.18,143.06,0.76872227]
[1740752503251,4.8895,143.16,143.01,0.74079247]
[1740752503458,1.83415735,143.15,143.0,63.43307615]
[1740752503631,1.83415735,143.15,143.01,312.0]
[1740752503835,1.83415735,143.15,143.02,18.64964886]
[1740752504042,0.14216157,143.14,143.01,312.0]
[1740752504248,0.14216157,143.12,142.99,11.98]
[1740752504663,0.14216157,143.12,143.0,18.64964886]
[1740752504874,1.8347402,143.13,143.0,18.64964886]
[1740752505174,14.13796611,143.13,143.0,19.39124082]
[1740752505345,4.8913,143.11,142.99,58.088927]
[1740752505544,1.3975,143.11,142.99,79.008927]
[1740752505853,1.3975,143.11,143.0,0.14216157]
[1740752506052,1.3975,143.11,143.0,5.99715671]
[1740752506250,1.3975,143.11,143.01,20.92]
[1740752506469,14.13796611,143.12,143.03,2.0]
[1740752506648,3.4923,143.17,143.04,20.92]
[1740752506973,1.397,143.16,143.04,26.91715671]
[1740752507173,1.397,143.16,143.08,312.0]
[1740752507336,6.8892,143.17,143.08,312.0]
[1740752507539,2.0,143.16,143.08,312.0]
[1740752507963,4.8892,143.17,143.09,18.64964886]
[1740752508145,4.8892,143.17,143.08,312.0]
[1740752508146,1.83356939,143.16,143.08,312.0]
[1740752508472,2.0,143.16,143.08,312.0]
[1740752508646,8.72313712,143.17,143.08,312.0]
[1740752509047,6.72313712,143.17,143.09,18.64964886]
[1740752509256,3.4923,143.17,143.09,18.64964886]
[1740752509465,3.4923,143.17,143.07,12.14216157]
[1740752509660,5.4923,143.17,143.08,18.64964886]
[1740752509840,3.4923,143.17,143.08,18.64964886]
[1740752510044,3.4923,143.17,143.07,30.64964886]
[1740752510239,3.4923,143.17,143.08,18.79181043]
[1740752510666,3.4923,143.17,143.08,18.64964886]
[1740752510967,7.32607765,143.17,143.07,9.1]
[1740752511147,3.4923,143.17,143.08,18.64964886]
[1740752511350,4.8892,143.17,143.08,18.64964886]
[1740752511544,7.3339,143.17,143.08,18.64964886]
[1740752512142,2.0,143.16,143.08,18.64964886]
[1740752512344,2.0,143.14,143.03,117.62]
[1740752512556,9.3339,143.17,143.05,18.64964886]
[1740752512757,7.3339,143.17,143.06,0.14216157]
[1740752512967,9.3339,143.17,143.06,0.14216157]
[1740752513571,5.2385,143.17,143.06,0.14216157]
[1740752513778,2.0,143.14,143.05,24.64680557]
[1740752513964,2.0,143.11,143.03,117.62]
[1740752514367,2.0,143.12,143.03,117.62]
[1740752514671,2.0,143.1,143.03,117.62]
[1740752514978,2.0,143.09,143.03,117.62]
[1740752515157,2.0,143.12,143.03,117.62]
[1740752515372,2.0,143.1,143.03,429.62]
[1740752515557,2.0962,143.11,143.03,429.62]
[1740752515966,7.3369,143.11,143.03,429.62]
[1740752516166,2.0,143.1,143.03,429.62]
[1740752516353,3.83466596,143.09,143.03,429.62]
[1740752516554,3.83466596,143.09,143.03,117.62]
[1740752517169,3.53466596,143.09,143.03,117.62]
[1740752517370,3.50935783,143.07,143.03,117.62]
[1740752517674,3.50935783,143.07,142.99,18.64964886]
[1740752517675,2.097,143.06,142.99,18.64964886]
[1740752518063,2.097,143.06,142.97,12.01]
[1740752518463,2.097,143.06,142.98,18.64964886]
[1740752519499,7.3395,143.06,143.0,312.0]
[1740752519984,1.7,143.03,142.97,0.03]
[1740752520188,7.3395,143.06,142.97,0.03]
[1740752520189,1.7,143.0,142.97,0.03]
[1740752520878,1.7,143.02,142.97,0.03]
[1740752521084,1.83590502,143.03,142.97,0.03]
[1740752521384,1.7,143.04,142.97,0.03]
[1740752521683,2.0974,143.03,142.97,0.03]
[1740752521982,3.58966568,143.05,142.99,20.0]
[1740752522169,1.83541242,143.09,143.0,0.14216157]
[1740752522170,3.5451106,143.09,143.0,0.14216157]
[1740752522372,9.0366,143.12,143.0,18.79181043]
[1740752522559,5.2395,143.15,143.04,18.79181043]
[1740752522760,2.0958,143.14,143.06,18.79181043]
[1740752522959,2.1584,143.17,143.06,176.21181043]
[1740752523171,3.5965444,143.17,143.05,148.48]
[1740752523373,1.7,143.15,143.05,11.98]
[1740752523575,3.49599477,143.13,143.06,18.64964886]
[1740752523777,2.0961,143.12,143.06,18.64964886]
[1740752524194,2.0961,143.12,143.05,11.98]
[1740752524360,3.93048631,143.12,143.05,323.98]
[1740752524564,0.063,143.17,143.07,0.14216157]
[1740752524776,0.063,143.17,143.16,20.14216157]
[1740752524989,1.83340669,143.33,143.21,20.0]
[1740752524990,1.763,143.32,143.21,20.0]
[1740752525190,1.7,143.3,143.17,18.64964886]
[1740752525376,1.7,143.27,143.18,0.14216157]
[1740752525575,1.7,143.25,143.15,254.2]
[1740752525772,5.51888172,143.29,143.16,18.64964886]
[1740752525971,1.7,143.15,143.03,11.5511]
[1740752526171,1.7,143.1,142.97,32.5011]
[1740752526383,1.7,143.05,142.97,11.5811]
[1740752526573,1.7,143.08,142.97,0.03]
[1740752526760,1.7,143.12,142.97,155.17964886]
[1740752526972,1.7,143.13,142.98,18.64964886]
[1740752527183,1.7,143.13,143.0,39.56964886]
[1740752527374,1.83434996,143.17,143.03,20.92]
[1740752527375,1.7,143.17,143.03,20.92]
[1740752527685,0.063,143.14,143.04,18.64964886]
[1740752527897,0.063,143.14,143.08,18.64964886]
[1740752528066,0.063,143.14,143.09,12.12216157]
[1740752528275,0.063,143.14,143.13,18.79181043]
[1740752528592,0.063,143.29,143.18,0.14216157]
[1740752528889,0.063,143.29,143.23,0.14216157]
[1740752529072,1.763,143.29,143.2,0.14216157]
[1740752529291,0.063,143.29,143.21,18.64964886]
[1740752529493,0.063,143.29,143.25,18.79181043]
[1740752529701,0.063,143.29,143.28,0.14216157]
[1740752530206,0.063,143.29,143.26,11.98]
[1740752530681,0.063,143.29,143.27,18.64964886]
[1740752531493,0.063,143.29,143.28,312.0]
[1740752532480,0.063,143.29,143.28,330.79181043]
[1740752533288,0.063,143.29,143.28,448.41181043]
[1740752533511,0.063,143.29,143.28,460.39181043]
[1740752534117,0.063,143.29,143.28,448.26964886]
[1740752534421,0.063,143.29,143.28,429.62]
[1740752534882,0.063,143.29,143.28,312.0]
[1740752535086,1.6108865,143.31,143.28,312.0]
[1740752535381,1.6108865,143.31,143.24,18.64964886]
[1740752535913,1.6108865,143.3,143.24,18.64964886]
[1740752536613,1.6108865,143.31,143.24,18.64964886]
[1740752536796,1.6108865,143.3,143.24,18.64964886]
[1740752536991,3.0693865,143.32,143.24,18.64964886]
[1740752537210,1.6108865,143.3,143.23,11.96]
[1740752537511,1.6108865,143.25,143.2,117.62]
[1740752538009,3.0070865,143.25,143.2,117.62]
[1740752538203,3.0070865,143.25,143.24,312.0]
[1740752538786,3.0070865,143.25,143.2,117.62]
[1740752538987,1.6108865,143.22,143.16,11.96]
[1740752539191,1.6108865,143.2,143.12,117.6]
[1740752539489,1.6108865,143.2,143.13,18.79181043]
[1740752539802,1.6108865,143.2,143.13,18.64964886]
[1740752540006,3.0075865,143.19,143.13,18.64964886]
[1740752540317,1.6108865,143.17,143.11,11.96]
[1740752540510,1.6108865,143.16,143.06,136.5]
[1740752540904,1.6108865,143.16,143.07,18.64964886]
[1740752541215,1.6108865,143.15,143.08,0.14216157]
[1740752541416,1.6108865,143.16,143.07,18.64964886]
[1740752541717,1.6108865,143.18,143.15,312.0]
[1740752542020,1.6108865,143.21,143.16,18.64964886]
[1740752542312,1.6108865,143.22,143.16,18.64964886]
[1740752542487,1.6108865,143.22,143.14,18.79181043]
[1740752542888,1.6108865,143.22,143.16,18.79181043]
[1740752543187,1.6108865,143.23,143.16,0.14216157]
[1740752543589,4.86630488,143.24,143.15,0.14216157]
[1740752543815,6.9784,143.3,143.15,0.14216157]
[1740752543816,1.6108865,143.26,143.17,0.14216157]
[1740752543998,3.0068865,143.26,143.18,18.64964886]
[1740752544313,1.6108865,143.28,143.19,0.14216157]
[1740752544491,1.6108865,143.28,143.22,0.14216157]
[1740752545214,1.6108865,143.28,143.27,312.0]
[1740752545425,1.6108865,143.23,143.15,266.1]
[1740752545597,1.6108865,143.23,143.15,129.6]
[1740752545799,1.6108865,143.21,143.11,136.5]
[1740752546094,1.6108865,143.23,143.12,18.64964886]
[1740752546298,1.6108865,143.24,143.13,0.14216157]
[1740752546499,1.6108865,143.23,143.2,312.0]
[1740752546692,1.6108865,143.21,143.2,312.0]
[1740752546890,1.6108865,143.19,143.1,143.4878]
[1740752547114,1.6108865,143.2,143.08,6.989]
[1740752547410,3.0079865,143.16,143.08,6.989]
[1740752547610,1.6108865,143.15,143.09,18.64964886]
[1740752547821,1.6108865,143.15,143.07,18.9495]
[1740752547991,3.0079865,143.16,143.08,18.79181043]
[1740752548196,1.3967,143.19,143.08,155.29181043]
[1740752548520,3.0075865,143.19,143.08,155.29181043]
[1740752548718,1.6108865,143.17,143.08,155.29181043]
[1740752549214,1.3967,143.19,143.08,155.29181043]
[1740752549414,1.3964,143.22,143.12,18.79181043]
[1740752549721,1.3964,143.22,143.12,155.29181043]
[1740752549922,1.3964,143.22,143.2,312.0]
[1740752550516,3.0069865,143.25,143.16,0.14216157]
[1740752550829,1.6108865,143.23,143.15,155.14964886]
[1740752551118,1.6108865,143.22,143.15,18.64964886]
[1740752551519,1.3965,143.21,143.15,18.64964886]
[1740752552217,1.3963,143.23,143.16,0.14216157]
[1740752552392,1.6108865,143.22,143.15,18.64964886]
[1740752553514,3.0071865,143.23,143.2,312.0]
[1740752553718,1.6108865,143.22,143.2,312.0]
[1740752553923,1.6108865,143.19,143.09,136.5]
[1740752554102,1.6108865,143.18,143.08,136.53]
[1740752554297,1.6108865,143.18,143.09,18.64964886]
[1740752554809,1.6108865,143.15,143.08,0.03]
[1740752555521,32.58382333,143.22,143.08,20.03]
[1740752555522,5.1025865,143.2,143.08,20.03]
[1740752555701,5.1025865,143.2,143.09,18.79181043]
[1740752556026,1.3961,143.25,143.13,20.79181043]
[1740752556211,1.3961,143.25,143.18,20.0]
[1740752556400,1.3958,143.28,143.2,0.14216157]
[1740752556821,1.3958,143.28,143.26,312.0]
[1740752557320,1.6108865,143.27,143.2,0.14216157]
[1740752557621,1.396,143.26,143.19,0.14216157]
[1740752558317,1.396,143.26,143.2,0.14216157]
[1740752558511,1.3958,143.28,143.2,0.14216157]
[1740752558820,3.0065865,143.3,143.22,0.14216157]
[1740752559019,1.3957,143.3,143.22,0.14216157]
[1740752559323,1.6738865,143.31,143.27,0.14216157]
[1740752559324,0.063,143.31,143.27,0.14216157]
[1740752559627,0.063,143.31,143.29,18.79181043]
[1740752559924,0.063,143.31,143.29,155.29181043]
[1740752560291,0.063,143.31,143.3,312.14216157]
[1740752560507,0.063,143.31,143.3,330.79181043]
[1740752561236,0.063,143.31,143.3,467.29181043]
[1740752562804,0.063,143.31,143.3,330.64964886]
[1740752563009,0.063,143.31,143.3,474.12794886]
[1740752563209,0.063,143.31,143.3,467.29181043]
[1740752564117,0.063,143.32,143.31,18.79181043]
[1740752565099,0.063,143.32,143.31,155.29181043]
[1740752565295,0.063,143.32,143.28,148.44]
[1740752565727,0.063,143.32,143.29,18.64964886]
[1740752565915,0.063,143.32,143.29,155.14964886]
[1740752566427,0.063,143.32,143.29,30.56964886]
[1740752566594,0.063,143.32,143.27,117.64]
[1740752567226,0.063,143.32,143.3,312.0]
[1740752567618,0.063,143.32,143.31,18.64964886]
[1740752567949,0.063,143.32,143.28,18.64964886]
[1740752568097,1.6108865,143.31,143.27,117.64]
[1740752568306,1.6738865,143.32,143.27,117.64]
[1740752568819,1.6108865,143.31,143.27,117.64]
[1740752569014,0.063,143.32,143.28,18.64964886]
[1740752569522,6.5578865,143.32,143.28,18.64964886]
[1740752569697,1.6108865,143.3,143.27,117.64]
[1740752569900,1.6108865,143.28,143.2,11.92]
[1740752570298,1.6108865,143.28,143.19,117.54]
[1740752570494,1.6108865,143.24,143.19,117.54]
[1740752570724,1.6108865,143.24,143.21,312.0]
[1740752571098,1.6108865,143.24,143.22,18.64964886]
[1740752571323,1.6108865,143.25,143.2,18.64964886]
[1740752571530,6.4976865,143.24,143.2,18.64964886]
[1740752572126,1.3962,143.24,143.2,18.64964886]
[1740752572334,1.6108865,143.23,143.2,18.64964886]
[1740752572827,3.0070865,143.24,143.2,18.64964886]
[1740752573131,7.05112468,143.27,143.2,18.64964886]
[1740752573132,1.6108865,143.25,143.2,18.64964886]
[1740752573707,1.6108865,143.3,143.21,0.14216157]
[1740752573907,1.6108865,143.3,143.23,0.14216157]
[1740752574220,0.063,143.32,143.29,312.0]
[1740752574632,0.063,143.32,143.3,18.64964886]
[1740752575138,0.063,143.32,143.29,18.79181043]
[1740752575906,0.063,143.32,143.3,11.92]
[1740752576503,0.063,143.32,143.31,18.79181043]
[1740752577809,0.063,143.32,143.31,474.26961043]
[1740752578714,0.063,143.32,143.31,467.29181043]
[1740752579626,0.063,143.32,143.31,474.26961043]
[1740752580152,0.063,143.32,143.31,330.79181043]
[1740752580832,0.063,143.32,143.31,330.64964886]
[1740752581034,0.063,143.32,143.31,330.79181043]
[1740752581618,0.063,143.32,143.31,474.26961043]
[1740752582020,0.063,143.32,143.31,467.29181043]
[1740752582330,0.063,143.32,143.31,330.79181043]
[1740752582948,0.063,143.32,143.31,330.64964886]
[1740752583321,0.063,143.32,143.31,467.29181043]
[1740752583729,0.063,143.32,143.31,495.28961043]
[1740752584815,0.063,143.32,143.31,488.31181043]
[1740752586653,1.3945,143.42,143.32,0.14216157]
[1740752586850,1.3945,143.42,143.37,0.14216157]
[1740752587039,1.3945,143.42,143.38,18.64964886]
[1740752587444,1.3945,143.42,143.39,0.14216157]
[1740752588157,1.6108865,143.43,143.39,0.14216157]
[1740752588158,1.3944,143.43,143.39,0.14216157]
[1740752588325,1.3943,143.44,143.39,0.14216157]
[1740752588532,1.3942,143.45,143.41,0.14216157]
[1740752589029,0.063,143.46,143.41,155.29181043]
[1740752589427,0.063,143.46,143.41,272.79181043]
[1740752589627,0.063,143.46,143.42,0.14216157]
[1740752589853,0.063,143.46,143.45,312.14216157]
[1740752590050,0.063,143.46,143.45,330.79181043]
[1740752591243,0.063,143.46,143.45,330.64964886]
[1740752591447,1.6738865,143.46,143.41,117.5]
[1740752591840,1.6738865,143.46,143.42,18.64964886]
[1740752592033,0.063,143.46,143.42,18.64964886]
[1740752592243,1.4571,143.46,143.43,0.14216157]
[1740752592558,1.4571,143.46,143.42,18.64964886]
[1740752592754,1.4571,143.46,143.43,0.14216157]
[1740752592961,0.063,143.46,143.44,18.64964886]
[1740752593265,0.063,143.46,143.45,12.02216157]
[1740752593464,0.063,143.46,143.45,167.17181043]
[1740752594057,0.063,143.57,143.49,22.14216157]
[1740752594261,0.063,143.57,143.51,0.14216157]
[1740752594474,0.063,143.57,143.56,18.64964886]
[1740752595866,0.063,143.57,143.56,38.79181043]
[1740752596064,0.063,143.57,143.56,18.79181043]
[1740752596443,1.6738865,143.57,143.52,265.8]
[1740752596665,0.063,143.57,143.53,0.14216157]
[1740752596843,0.063,143.57,143.53,18.79181043]
[1740752597990,0.063,143.57,143.56,330.79181043]
[1740752598263,0.063,143.57,143.56,467.29181043]
[1740752599264,0.063,143.57,143.56,330.64964886]
[1740752599467,0.063,143.57,143.52,129.28]
[1740752599769,1.6738865,143.57,143.53,18.79181043]
[1740752599948,3.0668865,143.57,143.53,18.79181043]
[1740752600149,1.6108865,143.55,143.52,129.28]
[1740752600551,1.6108865,143.55,143.53,18.64964886]
[1740752601863,3.0040865,143.55,143.53,18.64964886]
[1740752602252,1.6108865,143.55,143.53,18.64964886]
[1740752602456,1.6108865,143.55,143.53,330.64964886]
[1740752602971,1.6108865,143.56,143.53,330.64964886]
[1740752603157,0.063,143.57,143.54,0.14216157]
[1740752604475,1.6738865,143.57,143.54,0.14216157]
[1740752604963,0.063,143.57,143.54,0.14216157]
[1740752606484,0.063,143.57,143.56,351.81181043]
[1740752606676,0.063,143.57,143.56,488.31181043]
[1740752606985,0.063,143.57,143.56,176.31181043]
[1740752607957,0.063,143.57,143.56,183.27751043]
[1740752608582,0.063,143.61,143.56,183.27751043]
[1740752608890,0.063,143.61,143.6,39.81181043]
[1740752609084,0.063,143.61,143.6,188.15181043]
[1740752609966,1.6108865,143.66,143.6,188.15181043]
[1740752609967,1.6108865,143.66,143.61,18.79181043]
[1740752610180,1.6108865,143.64,143.61,18.79181043]
[1740752610377,1.6108865,143.62,143.6,11.84]
[1740752610785,1.6108865,143.61,143.57,30.48964886]
[1740752611393,1.6108865,143.61,143.58,0.14216157]
[1740752611692,1.6108865,143.61,143.57,30.48964886]
[1740752611892,1.6108865,143.61,143.58,0.14216157]
[1740752612072,3.0034865,143.61,143.58,0.14216157]
[1740752612262,1.6108865,143.61,143.58,0.14216157]
[1740752612463,3.0034865,143.61,143.58,0.14216157]
[1740752612679,1.6108865,143.6,143.57,30.48964886]
[1740752613188,1.6108865,143.59,143.57,30.48964886]
[1740752613973,1.393,143.57,143.52,253.92]
[1740752614288,1.6108865,143.58,143.54,18.79181043]
[1740752614485,1.6108865,143.58,143.54,18.64964886]
[1740752614691,1.6108865,143.58,143.53,18.64964886]
[1740752614874,1.6108865,143.58,143.54,0.14216157]
[1740752615888,1.6108865,143.57,143.53,18.64964886]
[1740752616289,3.0038865,143.57,143.53,18.64964886]
[1740752617273,1.6108865,143.54,143.52,117.42]
[1740752617980,1.6108865,143.53,143.52,117.42]
[1740752618180,3.0042865,143.53,143.52,117.42]
[1740752618390,1.6108865,143.52,143.48,18.64964886]
[1740752618577,1.6108865,143.52,143.46,136.563]
[1740752618578,1.6108865,143.49,143.46,0.063]
[1740752619076,1.6108865,143.49,143.35,0.3891135]
[1740752619077,1.6108865,143.47,143.31,146.6236449]
[1740752619283,1.6108865,143.36,143.31,146.6236449]
[1740752619467,1.6108865,143.33,143.31,10.1236449]
[1740752619667,1.6108865,143.33,143.31,0.03]
[1740752619891,1.6108865,143.32,143.31,0.03]
[1740752620089,3.0062865,143.32,143.31,0.03]
[1740752621289,1.6108865,143.29,143.28,0.03]
[1740752624187,1.6108865,143.29,143.24,0.14216157]
[1740752624580,1.6108865,143.31,143.26,0.14216157]
[1740752624783,1.6108865,143.3,143.26,0.14216157]
[1740752625388,1.6108865,143.31,143.26,0.14216157]
[1740752625598,1.6108865,143.31,143.27,30.46964886]
[1740752625897,1.6108865,143.32,143.28,0.14216157]
[1740752626274,1.6108865,143.31,143.28,0.14216157]
[1740752626477,1.6108865,143.32,143.28,0.14216157]
[1740752626889,1.6108865,143.33,143.3,0.14216157]
[1740752627191,1.6108865,143.34,143.3,0.14216157]
[1740752627875,1.6108865,143.33,143.3,0.14216157]
[1740752628702,1.6108865,143.3,143.28,0.14216157]
[1740752629201,1.6108865,143.28,143.25,6.9803]
[1740752629408,1.6108865,143.28,143.24,6.9811]
[1740752629704,1.6108865,143.28,143.25,18.79181043]
[1740752629872,1.6108865,143.26,143.25,18.64964886]
[1740752630997,1.6108865,143.26,143.23,11.82]
[1740752631205,1.6108865,143.25,143.23,11.82]
[1740752631594,1.6108865,143.25,143.24,18.64964886]
[1740752631800,1.6108865,143.24,143.2,136.5]
[1740752632111,1.6108865,143.24,143.2,18.64964886]
[1740752632296,1.6108865,143.23,143.2,18.64964886]
[1740752632683,1.6108865,143.22,143.18,117.34]
[1740752632881,1.6108865,143.21,143.19,21.02]
[1740752633108,1.6108865,143.2,143.18,117.34]
[1740752633406,1.6108865,143.19,143.18,117.34]
[1740752634192,1.6108865,143.17,143.16,0.063]
[1740752635014,2.3092865,143.17,143.16,0.063]
[1740752635304,1.6108865,143.17,143.16,0.063]
[1740752635719,2.3092865,143.17,143.16,0.063]
[1740752636412,2.3092865,143.17,143.16,0.0001]
[1740752636592,1.6108865,143.14,143.13,0.03]
[1740752636794,1.6108865,143.14,143.09,117.5]
[1740752637001,1.6108865,143.1,143.09,117.5]
[1740752637201,1.6108865,143.1,143.05,11.85]
[1740752637413,1.6108865,143.09,143.05,0.03]
[1740752638095,1.6108865,143.1,143.05,0.03]
[1740752638293,1.6108865,143.1,143.06,18.79181043]
[1740752638520,1.6108865,143.1,143.06,25.78161043]
[1740752639022,1.6108865,143.12,143.06,25.78161043]
[1740752639330,1.6108865,143.13,143.09,0.14216157]
[1740752639526,1.6108865,143.14,143.09,0.14216157]
[1740752640319,1.6108865,143.15,143.09,0.14216157]
[1740752640528,1.6108865,143.16,143.11,0.14216157]
[1740752641021,1.6108865,143.16,143.12,1.44347087]
[1740752641226,1.6108865,143.15,143.09,136.5]
[1740752642004,1.6108865,143.13,143.09,136.5]
[1740752642197,1.6108865,143.13,143.09,143.4883]
[1740752642426,1.6108865,143.14,143.09,143.5183]
[1740752642635,1.6108865,143.12,143.09,0.03]
[1740752643136,1.6108865,143.1,143.09,0.03]
[1740752644613,1.6108865,143.09,143.01,128.85936273]
[1740752644804,1.6108865,143.02,143.01,116.51872546]
[1740752645030,2.3100865,143.02,143.01,116.51872546]
[1740752645521,2.3100865,143.02,143.0,0.03]
[1740752645522,1.6108865,143.01,143.0,0.03]
[1740752647041,2.3100865,143.01,143.0,0.03]
[1740752647246,1.6108865,142.98,142.97,0.03]
[1740752647906,1.6108865,142.95,142.94,0.03]
[1740752651023,2.3103865,142.95,142.94,0.03]
[1740752652250,1.6108865,142.95,142.94,0.03]
[1740752652449,2.3103865,142.95,142.94,0.03]
[1740752652760,1.6108865,142.95,142.94,0.03]
[1740752653645,5.6108865,142.94,142.9,0.03]
[1740752653833,1.6108865,142.91,142.9,0.03]
[1740752654943,7.00410859,143.0,142.9,0.03]
[1740752654944,1.6108865,142.93,142.9,0.03]
[1740752655144,1.6108865,142.95,142.9,18.67964886]
[1740752655353,1.6108865,142.95,142.92,0.14216157]
[1740752655852,1.6108865,142.94,142.9,18.67964886]
[1740752656030,1.6108865,142.91,142.9,312.03]
[1740752656231,1.6108865,142.92,142.9,312.03]
[1740752656445,1.6108865,142.94,142.91,18.79181043]
[1740752657237,1.6108865,142.95,142.9,136.53]
[1740752657440,1.6108865,142.95,142.92,0.14216157]
[1740752658075,1.6108865,142.95,142.91,18.79181043]
[1740752658564,1.6108865,142.94,142.91,18.79181043]
[1740752659161,1.6108865,142.91,142.9,0.03]
[1740752659328,1.6108865,142.95,142.9,0.03]
[1740752659531,1.6108865,142.95,142.91,18.79181043]
[1740752659733,2.0,143.05,142.91,18.79181043]
[1740752659734,1.6108865,142.96,142.91,155.29181043]
[1740752659932,1.6108865,142.96,142.92,312.0]
[1740752660128,1.6108865,142.95,142.92,312.0]
[1740752660354,1.7481,143.01,142.9,0.03]
[1740752660355,1.6108865,142.93,142.9,0.03]
[1740752660965,1.6108865,142.93,142.9,0.17216157]
[1740752661463,1.6108865,142.93,142.91,6.9974]
[1740752661832,1.6108865,142.96,142.92,0.14216157]
[1740752662036,1.6108865,142.95,142.92,18.79181043]
[1740752662944,1.6108865,142.98,142.92,155.29181043]
[1740752663463,5.4953,143.05,142.92,155.29181043]
[1740752663464,1.6108865,143.04,142.97,21.02]
[1740752663756,1.6108865,143.03,142.98,148.39181043]
[1740752664250,1.6108865,143.06,142.98,305.91181043]
[1740752664449,1.6108865,143.1,143.02,18.79181043]
[1740752664653,1.6108865,143.1,143.02,155.29181043]
[1740752664854,1.6108865,143.09,143.02,155.29181043]
[1740752665052,1.6108865,143.07,143.02,155.29181043]
[1740752665561,1.6108865,143.07,143.03,6.9915]
[1740752665756,1.6108865,143.08,143.03,6.9915]
[1740752665955,1.6108865,143.07,143.03,6.9915]
[1740752666541,1.6738865,143.12,143.06,20.14216157]
[1740752666746,1.6108865,143.09,143.07,11.78]
[1740752666955,1.6108865,143.1,143.07,323.78]
[1740752667153,1.6108865,143.08,143.07,323.78]
[1740752668664,1.6108865,143.08,143.07,11.78]
[1740752668863,1.6108865,143.08,143.04,155.14964886]
[1740752669046,1.6108865,143.04,142.99,11.78]
[1740752669246,1.6108865,143.04,142.99,148.28]
[1740752669463,1.6108865,143.03,142.99,148.28]
[1740752670088,1.6108865,143.0,142.98,254.3]
[1740752670253,1.6108865,143.0,142.98,117.8]
[1740752670454,1.6108865,142.99,142.98,117.8]
[1740752671078,1.6108865,142.99,142.98,136.44964886]
[1740752672385,1.6108865,143.0,142.98,136.44964886]
[1740752672891,1.6108865,143.05,142.99,18.79181043]
[1740752673058,1.6108865,143.05,142.99,155.29181043]
[1740752673454,1.6108865,143.03,142.99,155.29181043]
[1740752673860,1.6108865,143.04,142.99,155.29181043]
[1740752674267,1.6108865,143.03,142.99,155.29181043]
[1740752674787,1.6108865,143.02,142.99,155.29181043]
[1740752674987,1.6108865,143.02,142.99,18.79181043]
[1740752675162,1.6108865,143.0,142.99,18.64964886]
[1740752675775,1.6108865,143.02,142.99,18.64964886]
[1740752675981,1.6108865,143.04,143.0,0.14216157]
[1740752676382,3.0089865,143.05,143.0,0.14216157]